fUST/lending_fUST_20240611
["ID","MTS","AMOUNT","RATE_DAILY","PERIOD"]
[329037443,1718069442719,-502.65957187,0.00019178,2]
[329037444,1718069442730,-500.0,0.00019178,2]
[329037445,1718069442740,-500.0,0.00019178,2]
[329037446,1718069442750,-4144.22,0.00019178,2]
[329037447,1718069442762,-500.0,0.00019178,2]
[329037448,1718069442772,-500.0,0.00019178,2]
[329037449,1718069442783,-500.0,0.00019178,2]
[329037450,1718069442793,-156.89015696,0.00019178,2]
[329037451,1718069442806,-500.0,0.00019178,2]
[329037452,1718069442816,-500.0,0.00019178,2]
[329037453,1718069442827,-500.0,0.00019178,2]
[329037454,1718069442836,-500.0,0.00019178,2]
[329037455,1718069442846,-500.0,0.00019178,2]
[329037456,1718069442856,-1365.25,0.00019178,2]
[329037457,1718069442867,-500.0,0.00019178,2]
[329037458,1718069442877,-500.0,0.00019178,2]
[329037459,1718069442887,-500.0,0.00019178,2]
[329037460,1718069442897,-500.0,0.00019178,2]
[329037461,1718069442907,-500.0,0.00019178,2]
[329037462,1718069442917,-500.0,0.00019178,2]
[329037463,1718069442927,-1358.61,0.00019178,2]
[329037464,1718069442937,-522.78,0.00019178,2]
[329037465,1718069442947,-500.0,0.00019178,2]
[329037466,1718069442957,-500.0,0.00019178,2]
[329037467,1718069442968,-500.0,0.00019178,2]
[329037468,1718069442978,-500.0,0.00019178,2]
[329037469,1718069442989,-500.0,0.00019178,2]
[329037470,1718069442999,-500.0,0.00019178,2]
[329037471,1718069443010,-500.0,0.00019178,2]
[329037472,1718069443021,-500.0,0.00019178,2]
[329037473,1718069443031,-500.0,0.00019178,2]
[329037474,1718069443042,-500.0,0.00019178,2]
[329037475,1718069443052,-500.0,0.00019178,2]
[329037476,1718069443063,-500.0,0.00019178,2]
[329037477,1718069443073,-500.36131839,0.00019178,2]
[329037478,1718069443083,-500.0,0.00019178,2]
[329037479,1718069443094,-500.0,0.00019178,2]
[329037480,1718069443103,-500.0,0.00019178,2]
[329037481,1718069443113,-275.05148856,0.00019178,2]
[329037482,1718069443122,-500.0,0.00019178,2]
[329037483,1718069443132,-245.88988261,0.00019178,2]
[329037484,1718069443142,-1722.33,0.00019178,2]
[329037485,1718069443153,-500.0,0.00019178,2]
[329037486,1718069443163,-500.0,0.00019178,2]
[329037487,1718069443174,-500.0,0.00019178,2]
[329037488,1718069443185,-500.0,0.00019178,2]
[329037489,1718069443195,-500.0,0.00019178,2]
[329037490,1718069443205,-2145.43,0.00019178,2]
[329037491,1718069443215,-500.0,0.00019178,2]
[329037492,1718069443226,-500.0,0.00019178,2]
[329037494,1718069443235,-500.0,0.00019178,2]
[329037496,1718069443245,-500.0,0.00019178,2]
[329037498,1718069443256,-500.0,0.00019178,2]
[329037500,1718069443267,-503.58571523,0.00019178,2]
[329037502,1718069443278,-516.91719957,0.00019178,2]
[329037504,1718069443289,-500.0,0.00019178,2]
[329037506,1718069443300,-500.0,0.00019178,2]
[329037508,1718069443310,-504.74132364,0.00019178,2]
[329037510,1718069443320,-508.17410566,0.00019178,2]
[329037511,1718069443330,-461.82581473,0.00019178,2]
[329037512,1718069443339,-396.98276091,0.00019178,2]
[329037513,1718069443351,-500.0,0.00019178,2]
[329037514,1718069443363,-500.0,0.00019178,2]
[329037515,1718069443372,-500.0,0.00019178,2]
[329037516,1718069443382,-516.82028388,0.00019178,2]
[329037517,1718069443392,-500.0,0.00019178,2]
[329037518,1718069443404,-502.61814463,0.00019178,2]
[329037519,1718069443414,-510.69590499,0.00019178,2]
[329037520,1718069443425,-3159.88,0.00019178,2]
[329037521,1718069443435,-500.0,0.00019178,2]
[329037522,1718069443445,-500.0,0.00019178,2]
[329037523,1718069443455,-500.0,0.00019178,2]
[329037524,1718069443466,-505.45041171,0.00019178,2]
[329037525,1718069443475,-506.05140743,0.00019178,2]
[329037526,1718069443485,-500.0,0.00019178,2]
[329037527,1718069443495,-500.0,0.00019178,2]
[329037528,1718069443505,-509.50840787,0.00019178,2]
[329037529,1718069443516,-160.194329,0.00019178,2]
[329037530,1718069443526,-153.0,0.00019278,2]
[329037531,1718069443536,-585.57641991,0.00019283,2]
[329037532,1718069443547,-410.6106982,0.00019288,2]
[329037533,1718069443559,-2000.0,0.00019352,2]
[329037534,1718069443569,-614.68,0.00019364,2]
[329037535,1718069443580,-871.64,0.00019364,2]
[329037536,1718069443591,-500.0,0.00019364,2]
[329037537,1718069443601,-454.0,0.00019365,2]
[329037538,1718069443611,-454.0,0.00019365,2]
[329037539,1718069443621,-454.0,0.00019365,2]
[329037540,1718069443631,-454.0,0.00019365,2]
[329037541,1718069443642,-454.0,0.00019365,2]
[329037542,1718069443652,-454.0,0.00019365,2]
[329037543,1718069443662,-454.0,0.00019365,2]
[329037544,1718069443674,-454.0,0.00019365,2]
[329037545,1718069443684,-454.0,0.00019365,2]
[329037546,1718069443694,-454.0,0.00019365,2]
[329037547,1718069443705,-454.0,0.00019365,2]
[329037548,1718069443715,-454.0,0.00019365,2]
[329037549,1718069443728,-454.0,0.00019365,2]
[329037550,1718069443738,-454.0,0.00019365,2]
[329037551,1718069443748,-454.0,0.00019365,2]
[329037552,1718069443758,-454.0,0.00019365,2]
[329037553,1718069443769,-454.0,0.00019365,2]
[329037554,1718069443779,-454.0,0.00019365,2]
[329037555,1718069443790,-454.0,0.00019365,2]
[329037556,1718069443800,-454.0,0.00019365,2]
[329037557,1718069443812,-454.0,0.00019365,2]
[329037558,1718069443822,-454.0,0.00019365,2]
[329037559,1718069443832,-454.0,0.00019365,2]
[329037560,1718069443842,-454.0,0.00019365,2]
[329037561,1718069443852,-454.0,0.00019365,2]
[329037562,1718069443861,-454.0,0.00019365,2]
[329037563,1718069443871,-454.0,0.00019365,2]
[329037564,1718069443881,-454.0,0.00019365,2]
[329037565,1718069443892,-454.0,0.00019365,2]
[329037566,1718069443902,-454.0,0.00019365,2]
[329037567,1718069443912,-454.0,0.00019365,2]
[329037568,1718069443923,-454.0,0.00019365,2]
[329037569,1718069443933,-454.0,0.00019365,2]
[329037570,1718069443943,-454.0,0.00019365,2]
[329037571,1718069443953,-454.0,0.00019365,2]
[329037572,1718069443963,-454.0,0.00019365,2]
[329037573,1718069443973,-454.0,0.00019365,2]
[329037574,1718069443983,-454.0,0.00019365,2]
[329037575,1718069443992,-454.0,0.00019365,2]
[329037576,1718069444002,-454.0,0.00019365,2]
[329037577,1718069444012,-454.0,0.00019365,2]
[329037578,1718069444022,-454.0,0.00019365,2]
[329037579,1718069444032,-454.0,0.00019365,2]
[329037580,1718069444041,-454.0,0.00019365,2]
[329037581,1718069444051,-454.0,0.00019365,2]
[329037582,1718069444060,-454.0,0.00019365,2]
[329037583,1718069444070,-454.0,0.00019365,2]
[329037584,1718069444079,-454.0,0.00019365,2]
[329037585,1718069444091,-454.0,0.00019365,2]
[329037586,1718069444100,-454.0,0.00019365,2]
[329037587,1718069444110,-454.0,0.00019365,2]
[329037588,1718069444120,-454.0,0.00019365,2]
[329037589,1718069444130,-454.0,0.00019365,2]
[329037590,1718069444139,-454.0,0.00019365,2]
[329037591,1718069444149,-454.0,0.00019365,2]
[329037592,1718069444161,-454.0,0.00019365,2]
[329037593,1718069444173,-454.0,0.00019365,2]
[329037594,1718069444183,-454.0,0.00019365,2]
[329037595,1718069444193,-454.0,0.00019365,2]
[329037596,1718069444203,-454.0,0.00019365,2]
[329037597,1718069444213,-454.0,0.00019365,2]
[329037598,1718069444223,-454.0,0.00019365,2]
[329037599,1718069444233,-454.0,0.00019365,2]
[329037600,1718069444244,-454.0,0.00019365,2]
[329037602,1718069444255,-454.0,0.00019365,2]
[329037603,1718069444265,-454.0,0.00019365,2]
[329037605,1718069444276,-454.0,0.00019365,2]
[329037606,1718069444285,-454.0,0.00019365,2]
[329037607,1718069444296,-454.0,0.00019365,2]
[329037608,1718069444306,-454.0,0.00019365,2]
[329037609,1718069444315,-454.0,0.00019365,2]
[329037610,1718069444327,-454.0,0.00019365,2]
[329037611,1718069444337,-454.0,0.00019365,2]
[329037612,1718069444346,-454.0,0.00019365,2]
[329037613,1718069444361,-454.0,0.00019365,2]
[329037614,1718069444370,-454.0,0.00019365,2]
[329037615,1718069444381,-454.0,0.00019365,2]
[329037616,1718069444391,-454.0,0.00019365,2]
[329037617,1718069444401,-454.0,0.00019365,2]
[329037618,1718069444411,-454.0,0.00019365,2]
[329037619,1718069444422,-454.0,0.00019365,2]
[329037620,1718069444432,-454.0,0.00019365,2]
[329037621,1718069444442,-454.0,0.00019365,2]
[329037622,1718069444452,-454.0,0.00019365,2]
[329037623,1718069444462,-454.0,0.00019365,2]
[329037624,1718069444473,-153.0,0.000194,2]
[329037625,1718069444485,-509.79145732,0.00019451,2]
[329037626,1718069444495,-614.68,0.00019451,2]
[329037627,1718069444505,-871.64,0.00019451,2]
[329037628,1718069444515,-500.0,0.00019451,2]
[329037629,1718069444525,-7158.89061502,0.00019452,15]
[329037630,1718069444535,-500.0,0.00019452,2]
[329037631,1718069444546,-500.0,0.00019452,2]
[329037632,1718069444556,-500.0,0.00019452,2]
[329037633,1718069444565,-500.0,0.00019452,2]
[329037634,1718069444575,-500.0,0.00019452,2]
[329037635,1718069444586,-500.0,0.00019452,2]
[329037636,1718069444596,-500.0,0.00019452,2]
[329037637,1718069444606,-546.88,0.00019452,2]
[329037638,1718069444616,-500.0,0.00019452,2]
[329037639,1718069444626,-500.0,0.00019452,2]
[329037640,1718069444636,-515.19738259,0.00019452,2]
[329037641,1718069444647,-500.0,0.00019452,2]
[329037642,1718069444658,-500.0,0.00019452,2]
[329037643,1718069444669,-500.0,0.00019452,2]
[329037644,1718069444679,-500.0,0.00019452,2]
[329037645,1718069444689,-500.0,0.00019452,2]
[329037646,1718069444699,-343.46620655,0.00019452,2]
[329037647,1718069444711,-243.68,0.00019452,2]
[329037648,1718069444721,-500.0,0.00019452,2]
[329037649,1718069444731,-500.0,0.00019452,2]
[329037650,1718069444742,-500.0,0.00019452,2]
[329037651,1718069444753,-500.0,0.00019452,2]
[329037652,1718069444763,-500.0,0.00019452,2]
[329037653,1718069444773,-500.0,0.00019452,2]
[329037654,1718069444784,-500.0,0.00019452,2]
[329037655,1718069444797,-500.0,0.00019452,2]
[329037656,1718069444807,-500.0,0.00019452,2]
[329037657,1718069444817,-500.0,0.00019452,2]
[329037658,1718069444827,-500.0,0.00019452,2]
[329037659,1718069444837,-500.0,0.00019452,2]
[329037660,1718069444848,-500.0,0.00019452,2]
[329037661,1718069444858,-500.0,0.00019452,2]
[329037662,1718069444868,-500.0,0.00019452,2]
[329037663,1718069444879,-550.7,0.00019452,2]
[329037664,1718069444889,-500.0,0.00019452,2]
[329037665,1718069444900,-1107.4,0.00019452,2]
[329037666,1718069444910,-758.26,0.00019452,2]
[329037667,1718069444921,-632.88,0.00019452,2]
[329037668,1718069444931,-500.0,0.00019452,2]
[329037669,1718069444942,-500.0,0.00019452,2]
[329037670,1718069444952,-500.0,0.00019452,2]
[329037671,1718069444962,-500.0,0.00019452,2]
[329037672,1718069444972,-2603.48,0.00019452,2]
[329037673,1718069444982,-882.95,0.00019452,2]
[329037674,1718069444993,-540.04,0.00019452,2]
[329037675,1718069445002,-2061.62,0.00019452,2]
[329037676,1718069445012,-1727.97,0.00019452,2]
[329037677,1718069445023,-500.0,0.00019452,2]
[329037678,1718069445033,-500.0,0.00019452,2]
[329037679,1718069445044,-500.0,0.00019452,2]
[329037680,1718069445054,-500.0,0.00019452,2]
[329037681,1718069445064,-594.37,0.00019452,2]
[329037682,1718069445074,-500.0,0.00019452,2]
[329037683,1718069445085,-500.0,0.00019452,2]
[329037684,1718069445095,-500.0,0.00019452,2]
[329037685,1718069445105,-4144.22,0.00019452,2]
[329037686,1718069445115,-500.0,0.00019452,2]
[329037687,1718069445125,-500.0,0.00019452,2]
[329037688,1718069445135,-1365.25,0.00019452,2]
[329037689,1718069445145,-500.0,0.00019452,2]
[329037690,1718069445155,-500.0,0.00019452,2]
[329037691,1718069445165,-500.0,0.00019452,2]
[329037692,1718069445176,-500.0,0.00019452,2]
[329037693,1718069445185,-1358.61,0.00019452,2]
[329037694,1718069445195,-522.78,0.00019452,2]
[329037695,1718069445205,-500.0,0.00019452,2]
[329037696,1718069445215,-500.0,0.00019452,2]
[329037697,1718069445226,-500.0,0.00019452,2]
[329037698,1718069445237,-500.0,0.00019452,2]
[329037699,1718069445247,-1722.33,0.00019452,2]
[329037700,1718069445258,-500.0,0.00019452,2]
[329037701,1718069445268,-2145.43,0.00019452,2]
[329037702,1718069445277,-500.0,0.00019452,2]
[329037703,1718069445288,-500.0,0.00019452,2]
[329037704,1718069445298,-500.0,0.00019452,2]
[329037705,1718069445308,-500.0,0.00019452,2]
[329037706,1718069445318,-505.00504312,0.00019452,2]
[329037707,1718069445328,-524.21727205,0.00019452,2]
[329037708,1718069445337,-500.0,0.00019452,2]
[329037709,1718069445348,-500.0,0.00019452,2]
[329037710,1718069445359,-503.16458913,0.00019452,2]
[329037711,1718069445369,-3159.88,0.00019452,2]
[329037712,1718069445379,-504.57894638,0.00019452,2]
[329037713,1718069445390,-507.69322509,0.00019452,2]
[329037714,1718069445400,-508.18505516,0.00019452,2]
[329037715,1718069445410,-585.57641991,0.00019489,2]
[329037716,1718069445420,-420.0,0.00019595,2]
[329037717,1718069445430,-620.07319444,0.00019614,2]
[329037718,1718069445440,-585.57641991,0.00019694,2]
[329037719,1718069445451,-614.68,0.00019725,2]
[329037720,1718069445461,-871.64,0.00019725,2]
[329037721,1718069445471,-512.85985415,0.00019725,2]
[329037722,1718069445481,-500.0,0.00019726,2]
[329037723,1718069445491,-500.0,0.00019726,2]
[329037724,1718069445502,-500.0,0.00019726,2]
[329037725,1718069445513,-500.0,0.00019726,2]
[329037726,1718069445523,-500.0,0.00019726,2]
[329037727,1718069445532,-500.0,0.00019726,2]
[329037728,1718069445543,-500.0,0.00019726,2]
[329037729,1718069445553,-500.0,0.00019726,2]
[329037730,1718069445563,-500.0,0.00019726,2]
[329037731,1718069445573,-500.0,0.00019726,2]
[329037732,1718069445583,-186.370593,0.00019726,2]
[329037733,1718069445594,-151.0,0.00019726,2]
[329037734,1718069445604,-260.06252,0.00019726,2]
[329037735,1718069445615,-500.0,0.00019726,2]
[329037736,1718069445625,-500.0,0.00019726,2]
[329037737,1718069445635,-159.265594,0.00019726,2]
[329037738,1718069445645,-550.7,0.00019726,2]
[329037739,1718069445656,-151.0,0.00019726,2]
[329037740,1718069445765,-151.0,0.00019726,2]
[329037741,1718069445776,-500.0,0.00019726,2]
[329037742,1718069445787,-151.0,0.00019726,2]
[329037743,1718069445798,-1107.4,0.00019726,2]
[329037744,1718069445809,-151.0,0.00019726,2]
[329037745,1718069445819,-758.26,0.00019726,2]
[329037746,1718069445829,-632.88,0.00019726,2]
[329037747,1718069445840,-151.0,0.00019726,2]
[329037748,1718069445850,-151.0,0.00019726,2]
[329037749,1718069445860,-500.0,0.00019726,2]
[329037750,1718069445871,-2603.48,0.00019726,2]
[329037751,1718069445881,-882.95,0.00019726,2]
[329037752,1718069445892,-1457.25760009,0.00019726,2]
[329037868,1718070634037,-525.72889487,0.00017814,2]
[329037870,1718070634049,-2679.5720049,0.00018107,2]
[329037872,1718070634060,-301.48966297,0.000189,2]
[329037874,1718070634071,-739.73245943,0.00019078,2]
[329037875,1718070634082,-355.62038422,0.00019078,2]
[329037877,1718070634093,-2691.8954674,0.0001917,2]
[329037879,1718070634103,-300.0,0.00019171,2]
[329037881,1718070634114,-412.4218428,0.00019172,2]
[329037883,1718070634124,-262.64158977,0.00019172,2]
[329037885,1718070634134,-727.67170884,0.00019172,2]
[329037887,1718070634147,-317.78630324,0.00019172,2]
[329037888,1718070634158,-155.01550155,0.00019172,2]
[329037890,1718070634168,-252.46175033,0.00019172,2]
[329037892,1718070634179,-527.60029577,0.00019172,2]
[329037894,1718070634190,-19358.30392694,0.00019172,2]
[329037896,1718070634201,-187.77768166,0.00019172,2]
[329037898,1718070634211,-924.56913724,0.00019172,2]
[329037900,1718070634224,-518.2389719,0.00019172,2]
[329037902,1718070634237,-724.10024374,0.00019172,2]
[329037904,1718070634249,-249.49868128,0.00019172,2]
[329037906,1718070634259,-1284.71820584,0.00019172,2]
[329037908,1718070634270,-948.05673826,0.00019172,2]
[329037909,1718070634280,-518.10938732,0.00019173,2]
[329037911,1718070634291,-661.42749977,0.00019173,2]
[329037913,1718070634301,-14430.24768418,0.00019174,2]
[329038283,1718070640383,-1059.03948426,0.00018,2]
[329038285,1718070640393,-1609.66788086,0.0001917,2]
[329038287,1718070640406,-2196.88972229,0.0001917,2]
[329038289,1718070640416,-11675.97525368,0.00019174,2]
[329038291,1718070640429,-9462.53144209,0.00019174,2]
[329038292,1718070640440,-159.14663277,0.00019174,2]
[329038293,1718070640452,-1985.34951999,0.00019174,2]
[329038294,1718070640463,-1159.28903764,0.00019174,2]
[329038295,1718070640474,-10520.75805358,0.00019175,2]
[329038296,1718070640484,-282.6922115,0.00019176,2]
[329038297,1718070640495,-18818.87392377,0.00019176,2]
[329038298,1718070640505,-501.48466067,0.00019178,2]
[329038299,1718070640515,-511.07454243,0.00019178,2]
[329038300,1718070640525,-502.35780939,0.00019178,2]
[329038301,1718070640536,-510.32512639,0.00019178,2]
[329038302,1718070640546,-552.19818538,0.00019178,2]
[329038303,1718070640557,-508.92713412,0.00019178,2]
[329038304,1718070640568,-507.69322509,0.00019178,2]
[329038305,1718070640579,-506.63255255,0.00019178,2]
[329038306,1718070640589,-504.47051759,0.00019178,2]
[329038307,1718070640599,-500.0,0.00019178,2]
[329038308,1718070640609,-512.85985415,0.00019178,2]
[329038309,1718070640621,-508.18505516,0.00019178,2]
[329038310,1718070640634,-510.57753714,0.00019178,2]
[329038311,1718070640647,-500.0,0.00019178,2]
[329038312,1718070640659,-501.71288207,0.00019178,2]
[329038313,1718070640670,-501.44559393,0.00019178,2]
[329038314,1718070640680,-507.01670841,0.00019178,2]
[329038315,1718070640693,-508.39973618,0.00019178,2]
[329038316,1718070640705,-511.52837509,0.00019178,2]
[329038317,1718070640716,-500.0,0.00019178,2]
[329038318,1718070640726,-504.60425278,0.00019178,2]
[329038319,1718070640741,-500.0,0.00019178,2]
[329038320,1718070640751,-506.3566549,0.00019178,2]
[329038321,1718070640763,-504.20345785,0.00019178,2]
[329038322,1718070640776,-503.07717489,0.00019178,2]
[329038323,1718070640787,-500.0,0.00019178,2]
[329038324,1718070640799,-505.5378581,0.00019178,2]
[329038325,1718070640809,-502.35066818,0.00019178,2]
[329038326,1718070640819,-505.12060792,0.00019178,2]
[329038327,1718070640830,-508.76476162,0.00019178,2]
[329038328,1718070640840,-614.25496652,0.00019178,2]
[329038329,1718070640851,-500.0,0.00019178,2]
[329038331,1718070640861,-501.07153318,0.00019178,2]
[329038333,1718070640871,-502.79126421,0.00019178,2]
[329038335,1718070640882,-506.13043631,0.00019178,2]
[329038337,1718070640892,-635.17366817,0.00019178,4]
[329038338,1718070640903,-268.5949183,0.00019178,2]
[329038339,1718070640915,-504.74556713,0.00019178,2]
[329038340,1718070640925,-506.55411071,0.00019178,2]
[329038341,1718070640936,-502.84616807,0.00019178,2]
[329038342,1718070640949,-505.53466256,0.00019178,2]
[329038344,1718070640961,-500.0,0.00019178,2]
[329038346,1718070640970,-508.34238989,0.00019178,2]
[329038348,1718070640981,-500.0,0.00019178,2]
[329038350,1718070640991,-500.0,0.00019178,2]
[329038352,1718070641003,-504.58451375,0.00019178,2]
[329038354,1718070641013,-500.0,0.00019178,2]
[329038356,1718070641024,-500.0,0.00019178,2]
[329038358,1718070641034,-500.0,0.00019178,2]
[329038360,1718070641044,-3867.58,0.00019178,2]
[329038362,1718070641054,-502.0,0.00019178,2]
[329038364,1718070641064,-506.33785986,0.00019178,2]
[329038365,1718070641074,-505.42679498,0.00019178,2]
[329038367,1718070641084,-500.0,0.00019178,2]
[329038369,1718070641094,-500.0,0.00019178,2]
[329038371,1718070641104,-504.24214208,0.00019178,2]
[329038373,1718070641115,-529.21,0.00019178,2]
[329038375,1718070641125,-1304.17,0.00019178,2]
[329038377,1718070641136,-500.0,0.00019178,2]
[329038380,1718070641146,-501.37163682,0.00019178,2]
[329038382,1718070641159,-500.0,0.00019178,2]
[329038384,1718070641170,-505.07626481,0.00019178,2]
[329038386,1718070641180,-500.0,0.00019178,2]
[329038388,1718070641190,-500.0,0.00019178,2]
[329038390,1718070641201,-505.21806324,0.00019178,2]
[329038391,1718070641212,-500.0,0.00019178,2]
[329038393,1718070641223,-502.90273458,0.00019178,2]
[329038395,1718070641233,-505.7925289,0.00019178,2]
[329038396,1718070641244,-509.35906316,0.00019178,2]
[329038398,1718070641254,-500.0,0.00019178,2]
[329038400,1718070641265,-504.14494139,0.00019178,2]
[329038402,1718070641275,-507.43405067,0.00019178,2]
[329038404,1718070641286,-608.08,0.00019178,2]
[329038406,1718070641296,-513.6989309,0.00019178,2]
[329038408,1718070641306,-373.93201103,0.00019178,2]
[329038410,1718070641316,-515.97403233,0.00019178,2]
[329038412,1718070641326,-500.0,0.00019178,2]
[329038414,1718070641335,-505.00504312,0.00019178,2]
[329038416,1718070641346,-504.51072072,0.00019178,2]
[329038418,1718070641356,-504.42059437,0.00019178,2]
[329038420,1718070641366,-696.93,0.00019178,2]
[329038421,1718070641377,-696.93,0.00019178,2]
[329038423,1718070641387,-524.21727205,0.00019178,2]
[329038425,1718070641397,-500.0,0.00019178,2]
[329038427,1718070641407,-503.33709716,0.00019178,2]
[329038428,1718070641418,-500.0,0.00019178,2]
[329038429,1718070641429,-500.0,0.00019178,2]
[329038431,1718070641439,-500.0,0.00019178,2]
[329038433,1718070641449,-501.87452443,0.00019178,2]
[329038435,1718070641460,-3028.22,0.00019178,2]
[329038437,1718070641470,-850.5,0.00019178,2]
[329038439,1718070641480,-506.78666802,0.00019178,2]
[329038441,1718070641490,-504.57894638,0.00019178,2]
[329038443,1718070641501,-504.39159816,0.00019178,2]
[329038445,1718070641511,-503.70124689,0.00019178,2]
[329038447,1718070641521,-169.07699777,0.00019178,2]
[329038449,1718070641531,-358.67465692,0.00019178,2]
[329038450,1718070641542,-644.43224502,0.00019178,2]
[329038452,1718070641552,-500.0,0.00019178,2]
[329038454,1718070641562,-500.0,0.00019178,2]
[329038455,1718070641572,-500.0,0.00019178,2]
[329038457,1718070641582,-500.0,0.00019178,2]
[329038459,1718070641592,-500.0,0.00019178,2]
[329038461,1718070641601,-552.38037242,0.00019178,2]
[329038463,1718070641611,-500.0,0.00019178,2]
[329038465,1718070641622,-1064.9,0.00019178,2]
[329038467,1718070641632,-503.08813007,0.00019178,2]
[329038469,1718070641642,-1976.89,0.00019178,2]
[329038470,1718070641652,-503.35583202,0.00019178,2]
[329038473,1718070641663,-728.48,0.00019178,2]
[329038475,1718070641673,-508.17150344,0.00019178,2]
[329038477,1718070641683,-1662.94,0.00019178,2]
[329038478,1718070641693,-570.63,0.00019178,2]
[329038480,1718070641704,-500.0,0.00019178,2]
[329038482,1718070641715,-500.0,0.00019178,2]
[329038484,1718070641725,-539.07,0.00019178,2]
[329038486,1718070641734,-539.07,0.00019178,2]
[329038488,1718070641745,-505.80436417,0.00019178,2]
[329038490,1718070641754,-516.92613567,0.00019178,2]
[329038492,1718070641767,-501.67609532,0.00019178,2]
[329038494,1718070641777,-500.0,0.00019178,2]
[329038496,1718070641787,-501.02283119,0.00019178,2]
[329038498,1718070641797,-500.0,0.00019178,2]
[329038500,1718070641807,-2497.55,0.00019178,2]
[329038502,1718070641817,-502.05170908,0.00019178,2]
[329038504,1718070641827,-500.0,0.00019178,2]
[329038506,1718070641837,-1813.91,0.00019178,2]
[329038507,1718070641847,-502.47824315,0.00019178,2]
[329038509,1718070641858,-616.46439206,0.00019178,2]
[329038511,1718070641868,-500.0,0.00019178,2]
[329038513,1718070641879,-501.35911908,0.00019178,2]
[329038515,1718070641888,-555.51828022,0.00019178,2]
[329038517,1718070641898,-500.0,0.00019178,2]
[329038519,1718070641908,-505.47703086,0.00019178,2]
[329038521,1718070641919,-503.16458913,0.00019178,2]
[329038523,1718070641929,-502.49515053,0.00019178,2]
[329038536,1718070642058,-500.0,0.00019178,2]
[329038538,1718070642069,-1386.22,0.00019178,2]
[329038540,1718070642080,-2066.76,0.00019178,2]
[329038542,1718070642091,-502.97162413,0.00019178,2]
[329038544,1718070642101,-501.78089507,0.00019178,2]
[329038546,1718070642111,-502.83845032,0.00019178,2]
[329038548,1718070642122,-502.14036929,0.00019178,2]
[329038550,1718070642132,-503.02093194,0.00019178,2]
[329038552,1718070642144,-500.0,0.00019178,2]
[329038554,1718070642156,-500.0,0.00019178,2]
[329038556,1718070642168,-509.08654808,0.00019178,2]
[329038558,1718070642179,-500.0,0.00019178,2]
[329038560,1718070642190,-500.0,0.00019178,2]
[329038562,1718070642201,-160.194329,0.00019178,2]
[329038564,1718070642211,-160.194329,0.00019178,2]
[329038566,1718070642222,-355.62038421,0.00019284,2]
[329038568,1718070642237,-153.0,0.00019381,2]
[329038570,1718070642248,-153.0,0.00019381,2]
[329038572,1718070642258,-153.0,0.00019381,2]
[329038574,1718070642268,-153.0,0.00019381,2]
[329038576,1718070642278,-153.0,0.00019381,2]
[329038578,1718070642288,-153.0,0.00019381,2]
[329038580,1718070642298,-153.0,0.00019381,2]
[329038582,1718070642308,-153.0,0.00019381,2]
[329038583,1718070642318,-153.0,0.00019381,2]
[329038584,1718070642328,-153.0,0.00019381,2]
[329038585,1718070642337,-153.0,0.00019381,2]
[329038586,1718070642346,-153.0,0.00019381,2]
[329038588,1718070642357,-153.0,0.00019381,2]